Cogmind - Beta 15 @@@ ROGUE MODE // 2025.09.25 @ 20:36:26 Player: Figgis Result: Self-destructed Performance ------------- Evolutions (6) 3000 Regions Visited (6) 1200 Robots Destroyed (53) 265 Value Destroyed (2389) 2389 Prototype IDs (37) 740 Alien Tech Used (0) 0 Bonus (1474) 1474 TOTAL SCORE: 9068 Bonus ------- High Alert Combat Kills 474 Entered Garrisons 200 Registered with UFD 300 Met Optimus in HQ 500 Cogmind --------- Core Integrity 927/1150 Matter 66/300 Energy 162/315 System Corruption 1% Temperature Cool (0) Movement Flying (299) Ox3 Location -4/Garrison Parts ------- > --- POWER (2) -------- Neutrino Core > --- PROPULSION (7) --- Flexi-carbon Leg Advanced VSS Leg Nuclear Pulse Thruster Field Propulsion Drive > --- UTILITY (8) ------ Large Storage Unit Active Sensor Suite Advanced Terrain Scanner Advanced Transmission Jammer > --- WEAPON (2) ------- (None) > --- INVENTORY (15) --- Fission Core Neutrino Core Improved Fusion Compressor Advanced Heat Sink Advanced Signal Interpreter Surveybot 17 Chip Improved Reaction Control System Improved Thermal Shield Advanced Force Field Hacking Suite Hacking Suite System Shield Nova Cannon Nova Cannon DRS Beacon (Ready) Peak State ------------ > --- POWER ------------ Light Neutrino Core Antimatter Reactor > --- PROPULSION ------- Improved Aluminum Leg Carbon-fiber Leg Carbon-fiber Leg Improved Carbon-fiber Leg Flexi-carbon Leg Advanced VSS Leg Impulse Thruster > --- UTILITY ---------- Large Storage Unit Active Sensor Suite Advanced Terrain Scanner Advanced Transmission Jammer Heavy Reactive Plating > --- WEAPON ----------- KE Penetrator Grenade Launcher > --- INVENTORY -------- Fission Core Neutrino Core Neutrino Core Improved Fusion Compressor Nuclear Pulse Thruster Field Propulsion Drive Advanced Heat Sink Advanced Signal Interpreter Surveybot 17 Chip Improved Reaction Control System Improved Thermal Shield Hacking Suite Hacking Suite System Shield DRS Beacon [Rating: 109] Favorites ----------- Power Fission Core Engine Ion Engine Power Core Fission Core Reactor Antimatter Reactor Propulsion Improved Aluminum Leg Leg Improved Aluminum Leg Flight Unit Impulse Thruster Utility Large Storage Unit Device Active Sensor Suite Storage Large Storage Unit Processor A0-MCA's Component Scanner Protection Hardened Light Armor Plating Weapon Improved Light Cannon Energy Cannon Powered Cannon Ballistic Gun KE Penetrator Ballistic Cannon Improved Light Cannon Launcher Grenade Launcher Build | -11 -10 -10 -7 -5 -4 -4 ------- Run | Yrd Mat Sub Scr Fac Fac Gar Slots Evolved 12 | . . . . 10 2 . Power 1 | . . . . 1 . . Propulsion 5 | . . . . 4 1 . Utility 6 | . . . . 5 1 . Weapon . | . . . . . . . Parts Attached 50 | 3 9 2 10 15 7 4 Power 10 | 1 1 . 2 4 1 1 Engine 4 | 1 . . 1 2 . . Core 5 | . 1 . 1 2 . 1 Reactor 1 | . . . . . 1 . Propulsion 18 | 2 2 . 4 5 3 2 Treads . | . . . . . . . Leg 15 | 2 2 . 4 5 2 . Wheel . | . . . . . . . Hover . | . . . . . . . Flight 3 | . . . . . 1 2 Utility 14 | . 4 . 2 6 2 . Device 6 | . . . . 4 2 . Storage 3 | . 3 . . . . . Processor 1 | . . . 1 . . . Hackware . | . . . . . . . Protection 4 | . 1 . 1 2 . . Artifact . | . . . . . . . Weapon 8 | . 2 2 2 . 1 1 Energy Gun . | . . . . . . . Energy Cannon 2 | . . . 1 . . 1 Ballistic Gun 1 | . . . . . 1 . Ballistic Cannon 4 | . 2 1 1 . . . Launcher 1 | . . 1 . . . . Special Weapon . | . . . . . . . Impact Weapon . | . . . . . . . Slashing Weapon . | . . . . . . . Piercing Weapon . | . . . . . . . Special Melee Weapon . | . . . . . . . Unidentified Prototypes 1 | . . . . 1 . . Parts Lost 16 | . . . . 3 13 . Power 3 | . . . . 1 2 . Propulsion 9 | . . . . 2 7 . Utility 1 | . . . . . 1 . Weapon 3 | . . . . . 3 . Highest Loss Streak 7 | . . . . 2 7 . To Critical Strikes . | . . . . . . . Average Backups 11 | 3 8 12 12 8 13 12 Power 1 | . 1 1 . . 3 3 Propulsion 2 | . 1 3 3 1 2 . Utility 4 | . 1 2 4 5 7 8 Weapon 2 | 2 3 5 2 1 . . Tool/Special . | . . . . . . . Unused Backups 24 | . 4 . 7 2 1 10 Power 4 | . . . 2 . . 2 Propulsion 1 | . 1 . . . . . Utility 13 | . . . 3 2 . 8 Weapon 6 | . 3 . 2 . 1 . Tool/Special . | . . . . . . . Average Slot Usage (%) 88 | . 98 100 94 75 72 46 Engine 5 | . 12 . 6 4 . . Core 7 | . 1 14 9 5 5 4 Leg 27 | . 28 28 27 32 27 10 Device 4 | . . . . 13 14 15 Storage 10 | . 13 14 13 5 5 5 Processor 2 | . . . 5 3 . . Protection 7 | . 13 14 8 1 4 . Energy Cannon 3 | . . . 5 5 1 . Ballistic Cannon 13 | . 27 27 16 . . . Peak Build Rating 109 | 3 15 17 42 95 109 84 Average Rating 44 | 1 11 16 26 86 98 75 On Entrance 32 | . 3 15 17 42 94 59 Naked Turns . | . . . . . . . Heaviest Build 94 | 3 38 38 49 90 94 40 Greatest Support 99 | 3 26 26 35 91 99 38 Greatest Overweight (x) 3 | . 2 1 1 1 1 3 Average Overweight (x) . | . . 1 1 . . 2 Largest Inventory Capacity 15 | 5 15 15 15 15 15 15 Average Capacity 14 | 5 9 15 15 15 15 15 Most Carried 15 | 5 10 14 15 15 15 15 Average Carried 12 | 3 8 12 14 10 14 13 Final Capacity 15 | 5 15 15 15 15 15 15 Final Carried 15 | 5 10 14 15 13 15 15 Class Distribution -------------------- 75% | Mutant 20% | Skirmisher 4% | Scavenger-Skirmisher Dominant Class ---------------- Mutant | -10/Materials Mutant | -10/Subcaves Mutant | -7/Scraptown Skirmisher | -5/Factory Skirmisher | -4/Factory Mutant | -4/Garrison Resources | -11 -10 -10 -7 -5 -4 -4 ----------- Run | Yrd Mat Sub Scr Fac Fac Gar Matter Collected 1088 | 230 87 79 366 215 111 . Remotely . | . . . . . . . Salvage Created 1600 | . 149 75 . 996 380 . Parts 86 | . 12 4 . 54 16 . Haulers Intercepted . | . . . . . . . Recyclers Shooed . | . . . . . . . Parts Field Recycled . | . . . . . . . Retrieved Matter . | . . . . . . . Parts Self-Destructed 9 | . . 9 . . . . Prevented . | . . . . . . . Kills | -11 -10 -10 -7 -5 -4 -4 ------- Run | Yrd Mat Sub Scr Fac Fac Gar Combat Hostiles Destroyed 42 | . 6 4 . 20 12 . Guns 3 | . . . . . 3 . Cannons 24 | . 6 2 . 16 . . AOE 15 | . . 2 . 4 9 . Classes Destroyed 11 | . 3 1 . 5 2 . Worker 1 | . . . . 1 . . Builder 5 | . . . . 2 3 . Tunneler 1 | . . . . 1 . . Operator 1 | . . . . . 1 . Watcher 3 | . 2 . . 1 . . Swarmer 11 | . 3 . . 4 4 . Grunt 19 | . 3 2 . 11 3 . Sentry 2 | . . . . 1 1 . Hunter 2 | . . . . . 2 . Programmer 6 | . . . . 4 2 . Subdweller 2 | . . 2 . . . . Best Kill Streak 10 | . 4 2 . 7 10 . Combat Bots Only 9 | . 4 2 . 4 9 . Max Kills in Single Turn 5 | . 1 1 . 5 3 . Gunslinging . | . . . . . . . Exploded 3 | . . 1 . 2 3 . Melee . | . . . . . . . Uniques/NPCs Destroyed . | . . . . . . . Combat | -11 -10 -10 -7 -5 -4 -4 -------- Run | Yrd Mat Sub Scr Fac Fac Gar Hostile Shots Fired 360 | . 21 18 . 125 192 4 Missed 101 | . 4 4 . 28 65 . Hits 259 | . 17 14 . 97 127 4 Projectile 259 | . 17 14 . 97 127 4 Critical Strikes 4 | . 1 . . 1 2 . Part Disruptions 1 | . . . . 1 . . Damage Taken 3789 | . 158 213 . 1497 1861 60 Core 391 | . 35 13 . 120 198 25 Absorbed by Shields 286 | . . . . 264 . 22 Ignored by Resistances 347 | . . . . 67 280 . Core Remaining (%) 89 | 100 . . 80 88 . . Volleys Fired 132 | . 21 18 . 55 38 . Largest 2 | . 2 2 . 1 2 . Hottest 66 | . 66 66 . 40 63 . Shots Fired 174 | . 42 36 . 55 41 . Gun 22 | . . . . . 22 . Cannon 130 | . 42 33 . 55 . . Launcher 22 | . . 3 . . 19 . Special . | . . . . . . . Kinetic 97 | . 42 33 . . 22 . Thermal 55 | . . . . 55 . . Explosive 22 | . . 3 . . 19 . Electromagnetic . | . . . . . . . Robot Hit Streak 13 | . 8 13 . 10 13 . Robot Miss Streak 5 | . 5 5 . 3 2 . Penetration Max 1 | . . . . . 1 . Secondary Targets . | . . . . . . . Shots Hit Robots 88 | . 18 14 . 33 23 . Core Hits 94 | . 9 8 . 27 50 . Critical Kills . | . . . . . . . Critical Parts Destroyed . | . . . . . . . Critical Strikes 1 | . 1 . . . . . Blast 1 | . 1 . . . . . Melee Attacks . | . . . . . . . Impact . | . . . . . . . Slashing . | . . . . . . . Piercing . | . . . . . . . Sneak Attacks . | . . . . . . . Combat Hostiles . | . . . . . . . Follow-up Attacks . | . . . . . . . Damage Inflicted 5719 | . 403 436 . 3093 1787 . Guns 320 | . . . . . 320 . Cannons 2482 | . 403 279 . 1800 . . Explosions 2911 | . . 157 . 1293 1461 . Melee . | . . . . . . . Ramming 6 | . . . . . 6 . Kinetic 1002 | . 403 279 . . 320 . Thermal 3080 | . . . . 3080 . . Explosive 1631 | . . 157 . 13 1461 . Electromagnetic . | . . . . . . . Impact . | . . . . . . . Slashing . | . . . . . . . Piercing . | . . . . . . . Highest Corruption 1 | . 1 1 . . 1 1 Average Corruption 1 | . 1 1 . . 1 1 Corruption Purged . | . . . . . . . Corruption Blocked . | . . . . . . . Effects 9 | . 5 3 . . . 1 Message Errors 2 | . 1 1 . . . . Matter Fused 3 | . 2 . . . . 1 Heat Flow Errors 1 | . . 1 . . . . Data Loss (minor) 2 | . 2 . . . . . Misfires 1 | . . 1 . . . . Overload Shots . | . . . . . . . Overflow Damage 284 | . 2 . . 250 32 . Projectiles 149 | . 2 . . 147 . . Explosions 135 | . . . . 103 32 . Melee . | . . . . . . . Knockbacks 11 | . 5 6 . . . . Impact . | . . . . . . . Kinetic 10 | . 4 6 . . . . Secondary 1 | . 1 . . . . . Self-Inflicted Damage 286 | . . . . 91 195 . Shots 6 | . . . . 2 4 . Rammed . | . . . . . . . Targets Rammed 2 | . . . . . 2 . Kicked 2 | . . . . . 2 . Crushed . | . . . . . . . Highest Temperature 213 | . 132 213 . 126 36 . Average Temperature 40 | . 46 102 . 41 21 . Received Heat Transfer 730 | . 33 111 . 439 126 21 Siege Activations . | . . . . . . . Martial Activations . | . . . . . . . Shielding Activations . | . . . . . . . Robots Disrupted . | . . . . . . . Combat Hostiles . | . . . . . . . Robots Corrupted . | . . . . . . . Combat Hostiles . | . . . . . . . Parts Fried . | . . . . . . . Impact Corruptions . | . . . . . . . Robots Melted . | . . . . . . . Combat Hostiles . | . . . . . . . Parts Melted . | . . . . . . . Heat Transferred 850 | . . . . 850 . . Parts Sabotaged . | . . . . . . . Parts Stolen . | . . . . . . . Parts Stripped . | . . . . . . . Power Chain Reactions . | . . . . . . . Alert | -11 -10 -10 -7 -5 -4 -4 ------- Run | Yrd Mat Sub Scr Fac Fac Gar Maximum Alert Level 4 | . . . . 4 3 2 Low Security (%) 40 | 100 100 . . 26 . . Level 1 9 | . . . . 22 . . Level 2 21 | . . . . 9 53 100 Level 3 26 | . . . . 37 46 . Level 4 1 | . . . . 3 . . Level 5 . | . . . . . . . High Security . | . . . . . . . Max Security . | . . . . . . . Peak Influence 1107 | . 91 . . 1107 1026 666 Initial 666 | . . . . . 527 666 Average 423 | . 15 . . 535 675 666 Influence Increases 2615 | . 181 50 . 1511 873 . Destroy 0b10 Robot/C 800 | . 120 40 . 400 240 . Destroy 0b10 Robot/NC 55 | . 10 . . 25 20 . Destroy Leader 156 | . 34 10 . 72 40 . Successful Hack 48 | . 12 . . 24 12 . Disable Machine 450 | . . . . 405 45 . Destroy Structure 431 | . 5 . . 210 216 . Partial Spotted 15 | . . . . 15 . . Lose Combat Pursuer 60 | . . . . 60 . . Active Sensor Use 600 | . . . . 300 300 . Influence Decreases 1949 | . 177 54 . 434 998 286 Entered New Map 839 | . . 3 . . 550 286 Time Decay 950 | . 177 51 . 404 318 . Lost Part 160 | . . . . 30 130 . Squads Dispatched 16 | . 2 . . 7 7 . Investigation 9 | . . . . 3 6 . Extermination 4 | . . . . 3 1 . Reinforcement 2 | . 2 . . . . . Assault 1 | . . . . 1 . . Garrison . | . . . . . . . Intercept . | . . . . . . . Searches Triggered . | . . . . . . . Construction Impeded . | . . . . . . . Haulers Reinforced . | . . . . . . . Active Scanning Responses 7 | . . . . 3 3 1 Cargo Convoy Interrupts 1 | . . . . 1 . . Stealth | -11 -10 -10 -7 -5 -4 -4 --------- Run | Yrd Mat Sub Scr Fac Fac Gar Distress Signals 1 | . 1 . . . . . Communications Jammed 27 | . . . . . 27 . Distress Signals 27 | . . . . . 27 . Times Spotted 73 | . 12 4 . 24 28 5 Peak Tracking Total 15 | . 4 2 . 5 15 4 Tactical Retreats 2 | . . . . 2 . . Traps | -11 -10 -10 -7 -5 -4 -4 ------- Run | Yrd Mat Sub Scr Fac Fac Gar Traps Triggered 2 | . 1 . . . . 1 Indirectly . | . . . . . . . Trap Hack Attempts . | . . . . . . . Triggered . | . . . . . . . Disarmed . | . . . . . . . Reprogrammed . | . . . . . . . Reused . | . . . . . . . Traps Extracted . | . . . . . . . Installed . | . . . . . . . Triggered . | . . . . . . . Machines | -11 -10 -10 -7 -5 -4 -4 ---------- Run | Yrd Mat Sub Scr Fac Fac Gar Machines Disabled 31 | . . 1 . 27 3 . Max in Single Turn 14 | . . 1 . 14 2 . Machines Repaired . | . . . . . . . Machines Dismantled . | . . . . . . . Machines Sabotaged . | . . . . . . . Overloaded Fab Kills . | . . . . . . . Hacking | -11 -10 -10 -7 -5 -4 -4 --------- Run | Yrd Mat Sub Scr Fac Fac Gar Machines Accessed 19 | . 2 1 8 3 5 . Terminals 6 | . 2 . . 2 2 . Fabricators . | . . . . . . . Repair Stations . | . . . . . . . Recycling Units 2 | . . . . 1 1 . Scanalyzers 1 | . . . . . 1 . Garrison Access 1 | . . . . . 1 . Total Hacks 83 | . 9 9 46 6 13 . Successful 72 | . 5 9 46 4 8 . Failed 11 | . 4 . . 2 5 . Catastrophic 3 | . . . . 1 2 . Database Lockouts . | . . . . . . . Manual 15 | . 4 . . 4 7 . Terminals 20 | . 9 . . 5 6 . Fabricators . | . . . . . . . Repair Stations . | . . . . . . . Recycling Units 3 | . . . . 1 2 . Scanalyzers 2 | . . . . . 2 . Garrison Access 3 | . . . . . 3 . Terminal Hacks 60 | . 3 9 46 1 1 . Record 53 | . . 8 45 . . . Prototype ID Bank 3 | . 1 . . 1 1 . Patrol Status 1 | . 1 . . . . . Hauler Manifests 1 | . 1 . . . . . Proto ID Catalog 2 | . . 1 1 . . . Fabricator Hacks . | . . . . . . . Repair Station Hacks . | . . . . . . . Recycling Unit Hacks 2 | . . . . 1 1 . Report Inventory 2 | . . . . 1 1 . Scanalyzer 2 | . . . . . 2 . Insert Component 1 | . . . . . 1 . Analyze 1 | . . . . . 1 . Garrison Access Hacks 1 | . . . . . 1 . Unlock Access 1 | . . . . . 1 . Unauthorized Hacks 7 | . 2 . . 2 3 . Terminals 6 | . 2 . . 2 2 . Botnet 6 | . 2 . . 2 2 . Fabricators . | . . . . . . . Repair Stations . | . . . . . . . Recycling Units 1 | . . . . . 1 . Fedlink 1 | . . . . . 1 . Scanalyzers . | . . . . . . . Garrison Access . | . . . . . . . Data Cores Recovered 1 | . . . . . 1 . Used . | . . . . . . . Hacking Detections 8 | . 2 . . 2 4 . Full Trace Events 2 | . . . . . 2 . Feedback Events . | . . . . . . . Feedback Blocked . | . . . . . . . Robot Schematics Acquired . | . . . . . . . Robots Built . | . . . . . . . Authchips . | . . . . . . . Time . | . . . . . . . Total Robot Build Rating . | . . . . . . . Part Schematics Acquired 1 | . . . . . 1 . Parts Built . | . . . . . . . Authchips . | . . . . . . . Time . | . . . . . . . Total Part Build Rating . | . . . . . . . Parts Repaired . | . . . . . . . Time . | . . . . . . . Parts Recycled . | . . . . . . . Recycled Matter . | . . . . . . . Retrieved Matter . | . . . . . . . Retrieved Components . | . . . . . . . Parts Scanalyzed 1 | . . . . . 1 . Part Schematics Acquired 1 | . . . . . 1 . Parts Damaged . | . . . . . . . Bothacking | -11 -10 -10 -7 -5 -4 -4 ------------ Run | Yrd Mat Sub Scr Fac Fac Gar Used RIF Installer . | . . . . . . . Robots Hacked . | . . . . . . . Non-combat . | . . . . . . . Combat . | . . . . . . . Robot Hacks Applied . | . . . . . . . Relay Couplers Released . | . . . . . . . Fabnet Peak Effective % . | . . . . . . . Robots Rewired . | . . . . . . . Allies Hacked . | . . . . . . . Hacks Repelled . | . . . . . . . Allies | -11 -10 -10 -7 -5 -4 -4 -------- Run | Yrd Mat Sub Scr Fac Fac Gar Total Allies . | . . . . . . . Largest Group . | . . . . . . . Highest-Rated Group . | . . . . . . . Highest-Rated Ally . | . . . . . . . Total Orders . | . . . . . . . Ally Attacks . | . . . . . . . Total Damage . | . . . . . . . Kills . | . . . . . . . Allies Corrupted . | . . . . . . . Allies Melted . | . . . . . . . Intel | -11 -10 -10 -7 -5 -4 -4 ------- Run | Yrd Mat Sub Scr Fac Fac Gar Active Infowar (turns) 2077 | . . . . 1217 702 158 A.S.S. 2076 | . . . . 1217 702 157 Terrain 790 | . . . . . 633 157 Jamming 1126 | . . . . 268 700 158 Robot Analysis Total . | . . . . . . . Derelict Logs Recovered 2 | . . . 2 . . . Drone Launches . | . . . . . . . Drone Recoveries . | . . . . . . . Exploration | -11 -10 -10 -7 -5 -4 -4 ------------- Run | Yrd Mat Sub Scr Fac Fac Gar Turns Passed 6699 | 32 866 704 2911 1315 702 169 Spaces Moved 3498 | 41 462 328 1473 760 385 49 Core 52 | 41 11 . . . . . Treads . | . . . . . . . Legs 3398 | . 451 328 1473 760 385 1 Wheels . | . . . . . . . Hover . | . . . . . . . Flight 48 | . . . . . . 48 Fastest Speed 50 | 50 50 190 190 120 112 105 Average Speed 169 | 50 163 190 190 131 152 295 Slowest Speed 299 | 50 260 190 195 195 190 299 Overloaded Moves . | . . . . . . . Propulsion Burnouts . | . . . . . . . Robots Hopped . | . . . . . . . Potential Cave-ins . | . . . . . . . Cave-ins Triggered . | . . . . . . . Exploration Rate (%) 32 | 3 78 21 89 17 11 8 Regions Visited 6 Branch Regions 2 Pre-discovered Areas . | . . . . . . . Known Exits Taken 2 | . . . . 1 1 . Unknown Exits Taken 4 | 1 1 1 1 . . . Scrap Searched 5 | . . . 5 . . . Spaces Dug 3 | . 1 . . 1 1 . Terrain Destroyed 256 | . 4 16 . 111 125 . Melee . | . . . . . . . Projectile 20 | . 4 . . 12 4 . AOE 236 | . . 16 . 99 121 . Terrain Rammed . | . . . . . . . Walls Destroyed . | . . . . . . . Machines Disabled . | . . . . . . . Actions | -11 -10 -10 -7 -5 -4 -4 --------- Run | Yrd Mat Sub Scr Fac Fac Gar Total 4112 | 51 535 373 1586 1037 457 73 Wait 323 | . 27 23 65 181 15 12 Move 3493 | 40 461 327 1472 759 385 49 Hop . | . . . . . . . Pick Up 60 | 8 9 3 18 12 7 3 Fast Attach 8 | . 3 . . 3 2 . Attach 26 | 3 1 . 3 11 4 4 Detach 2 | . . . . 1 . 1 Swap 24 | . 5 2 9 6 2 . Drop 39 | . 8 . 19 9 3 . Fire 132 | . 21 18 . 55 38 . Melee . | . . . . . . . Ram . | . . . . . . . Kick 1 | . . . . . 1 . Crush . | . . . . . . . Escape Stasis 3 | . . . . . . 3 Rewire 1 | . . . . . . 1 Trap . | . . . . . . . Miscellaneous . | . . . . . . . Route ------- -11/Scrapyard -10/Materials (discovered 4 exits: [*Mat x2] / [*Min] / *Sub) -10/Subcaves -7/Scraptown (discovered 2 exits: *Fac x2) -5/Factory (discovered 2 exits: *Fac x2) -4/Factory -4/Garrison History --------- Turn | Location | Event 11 | -11/Scrapyard | Discovered new exit (range 16) 33 | -11/Scrapyard | Entered Materials 300 | -10/Materials | Build established: Mutant 317 | -10/Materials | Discovered new exit (range 10) 483 | -10/Materials | Discovered new exit (range 9) 697 | -10/Materials | Discovered new exit (range 4) 846 | -10/Materials | Discovered new exit (range 7) 899 | -10/Materials | Entered Subcaves 900 | -10/Subcaves | Approached by a straggling Scientist 1259 | -10/Subcaves | Scientist uncovered a shortcut to Scraptown 1350 | -10/Subcaves | Visited 4L-MR0's lab 1503 | -10/Subcaves | Found Powered Cannon 1603 | -10/Subcaves | Entered Scraptown 1603 | -7/Scraptown | System corruption cleaned by C-Scrubber 2025 | -7/Scraptown | Scanned Subdweller tech in exchange for log data 2031 | -7/Scraptown | Learned Research security intel 2061 | -7/Scraptown | Discovered new exit (range 5) 2213 | -7/Scraptown | Visited TADAMA 2234 | -7/Scraptown | Visited Symbiants 2585 | -7/Scraptown | Visited Cave Peace 2615 | -7/Scraptown | Visited SPCMW 2697 | -7/Scraptown | Visited Assassins FH 2716 | -7/Scraptown | Visited Fellowship of the Rings 2731 | -7/Scraptown | Visited Cyclists 2773 | -7/Scraptown | Visited UFD Registry 2773 | -7/Scraptown | Registered with UFD as "Cargohacker" 2809 | -7/Scraptown | Entered Cyclist Reading Room 2896 | -7/Scraptown | Visited Curators Association 2953 | -7/Scraptown | Visited Derelict Rescue Squad 2965 | -7/Scraptown | Found DRS Beacon 2992 | -7/Scraptown | Received an X-ray algorithm 3017 | -7/Scraptown | Visited Science Guys 3201 | -7/Scraptown | Visited Abandonware Association 3232 | -7/Scraptown | Learned abandonware demo "REPAIR.EXE" 3232 | -7/Scraptown | Learned abandonware demo "REVENGE.EXE" 3277 | -7/Scraptown | Visited Infowarlord's Domain 3299 | -7/Scraptown | Attached Powered Cannon, gained temporary slot: Power 3299 | -7/Scraptown | Found Active Sensor Suite 3334 | -7/Scraptown | Visited A0-MCA Data Center 3345 | -7/Scraptown | Given a C- rating by A0-MCA 3365 | -7/Scraptown | Found A0-MCA's Component Scanner 3414 | -7/Scraptown | Visited Cartography Club 3462 | -7/Scraptown | Found Surveybot 17 Chip 3917 | -7/Scraptown | Visited Observation Area 3995 | -7/Scraptown | Visited DA-N13 Charitable Foundation 4020 | -7/Scraptown | Found DCF Scrap (25 items) 4412 | -7/Scraptown | Met Optimus 4412 | -7/Scraptown | Accepted into 0bPrime 4510 | -7/Scraptown | Discovered new exit (range 3) 4514 | -7/Scraptown | Entered Factory 4514 | -5/Factory | Evolved 10 slots: Power x1, Propulsion x4, Utility x5 4902 | -5/Factory | Discovered new exit (range 10) 4916 | -5/Factory | Identified exit to Factory 4924 | -5/Factory | Build established: Skirmisher 5414 | -5/Factory | First assault squad dispatched 5417 | -5/Factory | Ran an X-ray algorithm 5420 | -5/Factory | Found Hvy. Reactive Plating 5422 | -5/Factory | Found Hvy. Reactive Plating 5570 | -5/Factory | Discovered exit to Factory (range 5) 5734 | -5/Factory | Cargo convoy interrupted 5829 | -5/Factory | Entered another Factory area 5829 | -4/Factory | Evolved 2 slots: Propulsion x1, Utility x1 5915 | -4/Factory | Ran an X-ray algorithm 5915 | -4/Factory | Ran an X-ray algorithm 5924 | -4/Factory | Loaded intel: 8 recycling unit locations 5985 | -4/Factory | Build established: Scavenger-Skirmisher 6073 | -4/Factory | Destroyed 9 combat bots 6082 | -4/Factory | Lost 3 parts (2n1w) 6377 | -4/Factory | Lost 3 parts (2n1w) 6520 | -4/Factory | Identified exit to Garrison 6531 | -4/Factory | Entered Garrison 6562 | -4/Garrison | Lost 7 parts (2p3n1u1w) 6640 | -4/Garrison | Build established: Mutant 6700 | -4/Garrison | Self-destructed Last Messages --------------- 06531_ Kicked H-77 Assassin out of the way. LOCATION=GARRISON GOAL=ESCAPE 06557_ System corrupted: Matter fused (-9). 06607_ Acquired Adv. Force Field. 06611_ Attempting to rewire W-44 Eye. 06611_ W-44 Eye is dormant, system inaccessible. 06611_ W-44 Eye springs to life. 06642_ Acquired Nova Cannon. 06694_ ALERT: Active scanning activity detected within garrison interior, activating patrols. 06694_ Triggered Stasis Trap. 06694_ A bubble of rippling energy engulfs the area. 06694_ Field strength at 95. 06697_ Field strength at 90. 06698_ Field strength at 85. 06699_ Field strength at 80. 06699_ C-30 ARC bursts open, deploying its payload. 06699_ G-73 Enforcer unfolds itself. 06699_ G-67 Veteran unfolds itself. Map ----- +----------------------------------------------------+ | ?????????????????????????????????????????????????? | | ?????????????????????????????????????????????????? | | ?????????????????????????????????????????????????? | | ?????????????????????????????????????????????????? | | ?????????????????????????????????????????????????? | | ?????????????????????????????????????????????????? | | ?????????????????????????????????????????????????? | | ?????????????????????????????????????????????????? | | ????????????????????????g??g?????????????????????? | | ?????????????????????????????????????x???????????? | | ?????????#######?????????????????????x???????????? | | ?????????# C###########???????????????????????? | | ?????????# #???????????????????????? | | ?????????#C YY????????Y?????????????? | | ?????????# #???????????????????????? | | ?????????#C C######## #???????????????????????? | | ?????????############## #### #??????????????????? | | ??????????????# #??????????????????? | | ?????????????## ###### ######??????????????????? | | ?????????????# #???# #???????????????????????? | | ?????????????# !#???# #???????????????????????? | | ?????????????# #???# #???????????????????????? | | ?????????????#! !#???# #???????????????????????? | | ?????????????#! !#???# #?????????????????g?????? | | ?????????????## ###### #########???????g???????? | | ??????????????# @ g ????????? | | ??????????????######### ggg ????????? | | ??????????????????????############# #??????????? | | ?????????????????????????????????????????????????? | | ?????????????????????????????????C???????????????? | | ?????????????????????????????????C?????????lg????? | | ?????????????????????????????????????????????????? | | ?????????????????????????????????C????????g??????? | | ?????????????????????????????????????????????????? | | ?????????????????????????????????????????????????? | | ?????????????????????????????????????????????????? | | ??????????????YYYY??hb???????????????????????????? | | ???????????????????h?????????????????????????????? | | ??????????????b?bb?bb?b??????????????????????????? | | ????????????????hh???????????????????????????????? | | ????????????????b????????????????????????????????? | | ?????????????????????????????????????????????????? | | ?????????????????????????????????????????????????? | | ?????????????????????????????????????????????????? | | ?????????????????????????????????????????????????? | | ?????????????????????????????????????????????????? | | ?????????????????????????????????????????????????? | | ?????????????????????????????????????????????????? | | ?????????????????????????????????????????????????? | | ?????????????????????????????????????????????????? | +----------------------------------------------------+ Best States ------------- Heat Dissipation 43 Energy Generation 35 Energy Capacity 520 Matter Stores 300 Matter Capacity 300 Sight Range 16 Robot Scan Range 20 Terrain Scan Range 20 Terrain Scan Density 10 Jamming Range 16 Armor Coverage 600 Resistance: KI 40 Resistance: TH 25 Evasion (%) 55 Item Schematics ----------------- Imp. Reaction Control System | -4/Factory | Scanalyzed Robot Schematics ------------------ None Fabricated ------------ Nothing Repaired ---------- Nothing Alien Tech Used ----------------- None Achievements -------------- None Challenges ------------ None Game ------ Seed GrapheneThermicMinigun Manual? 0 Play Time 00:39:55 Cumulative 182.6 hours Start 2025.09.25 @ 19:52:24 End 2025.09.25 @ 20:36:26 Sessions 1 Manual Loads 0 Difficulty Rogue Special Mode None Game No. 287 Rogue 284 Adventurer 3 Explorer 0 Win Type - Total 1 Types 1/0/0/0/0/0/0/0/0/0 Lore% 63 Gallery% 59 Achievement% 46 Wizard Run 0 Options --------- Layout 0 ASCII 0 Keyboard 0 Movement Mouse Keybinds 0 Fullscreen 2 Font 18/SmallcapsGlow Map View 76x50 Zoom Use 0% Tactical HUD 1 Map Filters NONE Filters NONE Steam 1 RUN: 9d935f04-e443-4f76-8d81-b4663acd8c7e